bitfinex-derivatives/quotes_SOLF0:USTF0_20250816
["timestamp","ask_amount","ask_price","bid_price","bid_amount"]
[1755317293414,3.13,187.13,187.08,3.13]
[1755317294621,0.03678971,187.14,187.09,5.3408]
[1755317294826,3.13,187.12,187.09,5.3408]
[1755317295024,0.03678971,187.14,187.1,2.87624755]
[1755317295222,0.03678971,187.14,187.13,6.00624755]
[1755317296716,0.03678971,187.14,187.13,11.34594755]
[1755317298221,3.16678971,187.14,187.13,6.00624755]
[1755317300724,3.16678971,187.14,187.03,141.185]
[1755317300725,3.04,187.13,187.08,3.09]
[1755317301322,3.04,187.13,187.09,2.87624755]
[1755317301527,3.04,187.13,187.1,3.09]
[1755317301728,3.04,187.12,187.1,3.09]
[1755317302327,3.04,187.11,187.1,3.09]
[1755317302825,3.04,187.18,187.09,2.87624755]
[1755317303032,0.03447308,187.12,187.1,3.09]
[1755317303223,3.04,187.12,187.1,3.09]
[1755317303423,0.03531013,187.13,187.09,11.30704755]
[1755317303626,3.04,187.12,187.1,3.09]
[1755317303919,3.04,187.11,187.1,3.09]
[1755317304125,3.07531013,187.13,187.1,8.4305]
[1755317304325,3.04,187.12,187.11,3.09]
[1755317304828,0.03531013,187.13,187.11,3.09]
[1755317305025,3.07531013,187.13,187.1,5.3405]
[1755317305227,3.07531013,187.13,187.12,3.09]
[1755317305722,7.34576262,187.13,187.07,5.3414]
[1755317305918,3.04,187.12,187.08,3.09]
[1755317306124,3.04,187.12,187.09,3.09]
[1755317306627,3.04,187.12,187.1,3.09]
[1755317306824,3.04,187.12,187.07,5.3414]
[1755317307031,3.04,187.12,187.09,3.09]
[1755317310333,3.04,187.12,187.06,3.09]
[1755317310932,3.04,187.12,187.07,5.3414]
[1755317311234,3.04,187.12,187.08,3.09]
[1755317311636,3.04,187.12,187.06,5.3416]
[1755317311937,3.04,187.12,187.06,8.4316]
[1755317312332,3.04,187.12,187.07,3.09]
[1755317312632,3.04,187.12,187.06,5.3416]
[1755317312933,3.04,187.12,187.09,3.09]
[1755317313324,3.04,187.12,187.08,3.09]
[1755317314132,0.03531013,187.13,187.05,2.87624755]
[1755317314340,0.03531013,187.13,187.09,3.09]
[1755317314830,0.03531013,187.13,187.11,5.3401]
[1755317315036,0.03531013,187.13,187.12,3.09]
[1755317315437,0.03531013,187.13,187.12,8.43]
[1755317316029,0.03531013,187.13,187.12,3.09]
[1755317316231,0.03531013,187.13,187.08,2.87624755]
[1755317316428,3.04,187.12,187.1,3.09]
[1755317316627,3.04,187.11,187.1,3.09]
[1755317318236,3.04,187.12,187.11,3.09]
[1755317318640,3.04,187.12,187.05,5.96624755]
[1755317318941,3.04,187.1,187.05,5.96624755]
[1755317320840,3.04,187.1,187.03,3.09]
[1755317321041,3.04,187.08,187.03,3.09]
[1755317321743,0.03644921,187.07,187.03,3.09]
[1755317322245,7.33851064,187.06,186.97,2.87624755]
[1755317322549,3.04,187.04,186.98,3.09]
[1755317322850,3.04,187.02,186.99,3.09]
[1755317323241,3.07548922,187.02,186.99,3.09]
[1755317323443,3.07548922,187.02,186.97,2.87624755]
[1755317323644,3.07548922,187.02,187.0,3.09]
[1755317324138,0.03548922,187.02,186.96,2.87624755]
[1755317324339,3.07548922,187.02,186.99,2.87624755]
[1755317324543,3.04,187.03,187.0,3.09]
[1755317324732,0.03485858,187.02,187.0,3.09]
[1755317325541,0.03485858,187.02,186.99,2.87624755]
[1755317325742,3.07485858,187.02,187.01,3.09]
[1755317326539,0.03485858,187.02,187.01,3.09]
[1755317326748,3.07485858,187.02,187.01,3.09]
[1755317327345,0.03485858,187.02,187.01,3.09]
[1755317328850,3.05485858,187.02,187.01,3.09]
[1755317329048,0.03485858,187.02,186.99,11.31994755]
[1755317329248,3.02,187.01,186.99,8.21994755]
[1755317329548,3.02,187.01,187.0,3.1]
[1755317331749,3.02,187.01,186.97,5.3442]
[1755317331943,3.02,187.01,186.98,3.1]
[1755317332150,3.02,187.01,186.99,3.1]
[1755317333349,3.02,187.01,186.97,3.1]
[1755317334150,0.03485858,187.02,186.96,2.87624755]
[1755317334349,3.05485858,187.02,186.94,3.1]
[1755317334548,3.05485858,187.02,186.95,3.1]
[1755317345457,4.27929539,187.01,186.95,3.1]
[1755317345649,3.02,187.0,186.96,3.1]
[1755317346554,3.02,187.01,186.93,5.3454]
[1755317346752,3.02,187.01,186.94,3.1]
[1755317348459,3.02,186.99,186.94,3.1]
[1755317348960,0.03485858,187.02,186.93,5.3454]
[1755317349156,3.02,187.01,186.97,3.1]
[1755317349658,3.02,187.0,186.97,3.1]
[1755317349958,0.03636252,187.01,186.97,3.1]
[1755317350152,3.02,186.99,186.97,3.1]
[1755317350357,3.02,186.98,186.95,3.1]
[1755317350852,3.02,187.0,186.95,3.1]
[1755317351557,3.02,186.99,186.95,5.3448]
[1755317351761,3.02,186.99,186.96,3.1]
[1755317353556,3.02,186.98,186.96,3.1]
[1755317353761,3.02,186.98,186.95,3.1]
[1755317353955,3.02,186.97,186.95,3.1]
[1755317354151,3.02,186.96,186.94,2.87624755]
[1755317354351,0.03636252,187.01,186.94,2.87624755]
[1755317354660,3.02,186.98,186.95,3.1]
[1755317355551,3.02,186.97,186.96,3.1]
[1755317355750,3.02,186.97,186.94,3.1]
[1755317355955,3.02,186.97,186.95,3.1]
[1755317356163,0.03520194,186.99,186.92,2.87624755]
[1755317356164,3.02,186.98,186.92,2.87624755]
[1755317356355,3.02,186.97,186.93,3.1]
[1755317356758,3.02,186.97,186.94,5.3449]
[1755317356958,3.02,186.97,186.95,3.1]
[1755317358059,3.02,186.97,186.93,5.3453]
[1755317358265,3.02,186.98,186.95,3.1]
[1755317358663,3.02,186.98,186.92,2.87624755]
[1755317358860,3.02,186.98,186.93,2.84]
[1755317359063,3.02,186.98,186.92,2.87624755]
[1755317359567,3.02,186.98,186.94,2.84]
[1755317362463,2.99,186.96,186.94,2.84]
[1755317363456,0.03520194,186.99,186.9,8.22244755]
[1755317363654,2.99,186.97,186.91,2.84]
[1755317363853,4.27938447,186.96,186.91,2.84]
[1755317364053,2.99,186.94,186.91,2.84]
[1755317365660,0.03756392,186.96,186.91,2.84]
[1755317365661,2.99,186.93,186.91,2.84]
[1755317366158,2.99,186.95,186.91,2.84]
[1755317366559,2.99,186.95,186.9,2.87624755]
[1755317366759,2.99,186.95,186.92,2.84]
[1755317367260,2.99,186.95,186.93,2.84]
[1755317368265,2.99,186.94,186.93,2.84]
[1755317376867,2.99,186.94,186.92,4.68507963]
[1755317377572,2.99,186.95,186.91,2.84]
[1755317377974,2.99,186.93,186.92,2.84]
[1755317380370,0.03756392,186.96,186.92,1.84507963]
[1755317380672,2.99,186.94,186.92,1.84507963]
[1755317381073,0.03756392,186.96,186.92,1.84507963]
[1755317381271,2.99,186.93,186.92,4.68507963]
[1755317383373,2.99,186.93,186.9,4.68507963]
[1755317383572,2.99,186.93,186.9,1.84507963]
[1755317383773,2.99,186.93,186.91,2.84]
[1755317384980,2.99,186.95,186.9,1.84507963]
[1755317385172,2.99,186.93,186.9,4.68507963]
[1755317385379,2.99,186.93,186.9,1.84507963]
[1755317385575,2.99,186.93,186.91,2.84]
[1755317385879,2.99,186.94,186.92,4.68507963]
[1755317386077,2.99,186.94,186.93,2.84]
[1755317386279,2.99,186.93,186.9,4.68507963]
[1755317386675,2.99,186.93,186.9,1.84507963]
[1755317387678,2.99,186.93,186.9,4.68507963]
[1755317387882,2.99,186.93,186.9,2.84]
[1755317388085,2.99,186.93,186.89,2.84]
[1755317388380,2.99,186.93,186.9,2.84]
[1755317389373,2.99,186.93,186.88,1.84507963]
[1755317389576,2.99,186.93,186.89,2.92]
[1755317389980,2.99,186.93,186.9,2.92]
[1755317390376,4.30155621,186.92,186.85,1.84507963]
[1755317390577,3.14,186.9,186.87,2.92]
[1755317390980,3.14,186.9,186.86,4.76507963]
[1755317391178,3.18013292,186.9,186.86,4.76507963]
[1755317391383,4.30114546,186.89,186.86,2.92]
[1755317391581,3.14,186.87,186.81,1.84507963]
[1755317391787,3.14,186.86,186.83,2.92]
[1755317391984,3.14,186.84,186.83,2.92]
[1755317392285,3.14,186.84,186.81,2.92]
[1755317392684,3.14,186.84,186.8,1.84507963]
[1755317392888,3.14,186.84,186.82,2.92]
[1755317393283,3.14,186.85,186.8,1.84507963]
[1755317393477,0.03648609,186.86,186.8,1.84507963]
[1755317393478,0.03648609,186.86,186.81,2.92]
[1755317393691,3.14,186.84,186.83,2.92]
[1755317395680,3.14,186.84,186.79,2.92]
[1755317396983,0.03726543,186.85,186.79,2.92]
[1755317397184,3.14,186.84,186.79,2.92]
[1755317397589,3.14,186.84,186.8,5.349]
[1755317397791,3.14,186.84,186.81,2.92]
[1755317397988,3.14,186.83,186.81,2.92]
[1755317398788,3.14,186.83,186.78,8.23599355]
[1755317398990,3.14,186.82,186.79,2.92]
[1755317399393,3.14,186.84,186.78,2.88639355]
[1755317399591,3.14,186.84,186.78,5.80639355]
[1755317399894,3.14,186.84,186.79,2.92]
[1755317401088,0.03726543,186.85,186.79,2.92]
[1755317401294,3.17726543,186.85,186.81,5.3486]
[1755317401491,0.03726543,186.85,186.82,2.92]
[1755317401689,0.03726543,186.85,186.78,2.88639355]
[1755317401690,3.14,186.84,186.79,2.92]
[1755317401895,3.14,186.84,186.8,5.349]
[1755317402095,3.14,186.84,186.81,2.92]
[1755317402596,0.03726543,186.85,186.79,5.3493]
[1755317402897,3.14,186.84,186.81,2.92]
[1755317403495,3.14,186.84,186.8,8.269]
[1755317403698,3.14,186.84,186.81,2.92]
[1755317404388,0.03726543,186.85,186.81,2.88639355]
[1755317404594,0.03726543,186.85,186.82,2.92]
[1755317404796,0.03726543,186.85,186.84,5.80639355]
[1755317404994,0.03726543,186.85,186.84,11.15439355]
[1755317405193,3.14,186.91,186.85,2.92]
[1755317405493,3.14,186.91,186.9,5.3462]
[1755317405698,3.14,186.97,186.91,2.92]
[1755317406487,3.14,186.97,186.92,0.03950258]
[1755317406792,3.14,186.97,186.94,2.92]
[1755317407292,3.14,187.02,186.93,2.92]
[1755317407489,3.14,187.0,186.93,2.92]
[1755317407693,3.14,186.98,186.93,2.92]
[1755317408196,3.14,186.98,186.94,0.03465049]
[1755317408791,3.14,186.96,186.94,0.03465049]
[1755317408996,7.42776538,186.95,186.94,0.03465049]
[1755317409992,3.14,186.95,186.94,2.95465049]
[1755317414495,3.14,186.97,186.94,2.95465049]
[1755317414695,7.29868419,187.04,186.94,2.95465049]
[1755317414696,3.14,186.96,186.95,2.92]
[1755317415197,3.14,187.03,186.95,2.92]
[1755317415399,4.2873329,187.02,186.95,2.92]
[1755317415601,3.14,187.0,186.95,2.92]
[1755317415792,3.14,187.0,186.96,2.92]
[1755317415992,3.14,187.0,186.94,2.95465049]
[1755317417503,3.14,186.98,186.94,2.95465049]
[1755317418799,3.14,186.98,186.94,0.03465049]
[1755317419102,3.14,186.98,186.95,2.92]
[1755317419694,3.14,186.98,186.96,2.92]
[1755317419897,2.88639355,187.04,186.96,2.92]
[1755317420105,3.13,186.97,186.96,2.92]
[1755317421301,2.88639355,187.04,186.96,2.92]
[1755317421606,4.41229064,187.05,186.96,2.92]
[1755317421607,3.13,186.99,186.96,2.92]
[1755317422403,3.13,187.05,186.97,2.92]
[1755317422604,4.28200038,187.04,186.97,2.92]
[1755317422907,3.13,187.02,186.95,2.88639355]
[1755317423105,3.13,187.02,186.99,0.03969785]
[1755317423799,3.13,187.06,186.99,0.03969785]
[1755317424005,3.13,187.04,186.99,2.95969785]
[1755317424201,3.13,187.02,186.99,2.95969785]
[1755317424906,3.13,187.06,186.99,2.95969785]
[1755317425209,3.13,187.04,186.99,2.95969785]
[1755317425408,3.13,187.02,186.99,2.95969785]
[1755317425907,3.13,187.02,186.99,0.03969785]
[1755317427813,4.27836102,187.01,186.99,0.03969785]
[1755317428012,3.13,187.0,186.99,0.03969785]
[1755317429902,3.13,187.0,186.92,2.88639355]
[1755317430107,3.13,187.0,186.92,5.80639355]
[1755317430413,3.13,187.0,186.93,2.92]
[1755317435513,3.13,186.98,186.9,2.88639355]
[1755317435719,3.13,186.98,186.94,2.92]
[1755317436117,3.16758334,186.98,186.94,2.92]
[1755317440620,3.13,186.96,186.94,2.92]
[1755317441023,3.13,186.96,186.87,2.88639355]
[1755317441222,3.13,186.96,186.88,2.92]
[1755317441723,2.88639355,186.99,186.88,2.92]
[1755317441724,0.03962876,186.94,186.88,2.92]
[1755317441923,3.13,186.93,186.88,2.92]
[1755317447522,3.13,186.9,186.88,2.92]
[1755317448126,3.13,186.92,186.88,2.92]
[1755317448322,3.05,186.93,186.88,2.92]
[1755317448531,4.28680691,186.92,186.88,2.92]
[1755317448722,3.05,186.91,186.88,2.92]
[1755317453031,3.05,186.91,186.89,3.03]
[1755317454933,3.05,186.9,186.87,3.03]
[1755317455130,0.03962876,186.94,186.87,3.03]
[1755317455328,4.29517801,186.93,186.87,3.03]
[1755317455531,3.05,186.9,186.87,3.03]
[1755317456129,0.03962876,186.94,186.87,3.03]
[1755317456330,3.05,186.9,186.87,3.03]
[1755317457335,3.05,186.9,186.88,3.03]
[1755317459641,3.05,186.93,186.88,3.03]
[1755317459832,0.03962876,186.94,186.86,2.88639355]
[1755317459833,0.03962876,186.94,186.92,2.88639355]
[1755317460028,3.05,186.98,186.93,3.03]
[1755317460340,4.41229064,187.04,186.95,2.88639355]
[1755317460631,3.05,186.98,186.96,3.03]
[1755317460830,3.05,186.97,186.95,8.23099355]
[1755317461027,3.05,186.99,186.95,8.23099355]
[1755317461437,3.05,186.98,186.97,3.03]
[1755317467645,3.05,186.98,186.96,3.07116182]
[1755317467847,3.05,186.98,186.96,0.04116182]
[1755317468442,7.34536947,186.97,186.96,0.04116182]
[1755317468637,3.05,186.96,186.89,3.03]
[1755317468841,3.05,186.94,186.89,3.03]
[1755317469550,4.29564118,186.93,186.89,3.03]
[1755317469751,3.05,186.92,186.87,2.88639355]
[1755317469953,3.05,186.92,186.9,3.03]
[1755317471348,3.05,186.92,186.87,2.88639355]
[1755317471549,0.03484373,186.93,186.87,2.88639355]
[1755317471751,7.34534952,186.92,186.88,3.03]
[1755317471950,3.05,186.91,186.88,3.03]
[1755317472148,3.05,186.91,186.87,2.88639355]
[1755317472349,3.05,186.91,186.88,3.03]
[1755317472550,3.05,186.9,186.88,3.03]
[1755317472952,0.03484373,186.93,186.88,3.03]
[1755317473153,0.03484373,186.93,186.9,2.88639355]
[1755317473353,0.03484373,186.93,186.91,3.03]
[1755317473748,3.05,186.92,186.88,3.03]
[1755317473948,3.05,186.92,186.89,3.03]
[1755317478452,0.03484373,186.93,186.85,5.3476]
[1755317478653,2.95,186.91,186.81,5.96639355]
[1755317478854,4.2959602,186.9,186.81,2.88639355]
[1755317479056,4.2959602,186.89,186.82,3.08]
[1755317479251,2.95,186.88,186.82,3.08]
[1755317479456,0.04059923,186.87,186.82,3.08]
[1755317479656,2.95,186.86,186.82,3.08]
[1755317479858,0.04059923,186.87,186.82,3.08]
[1755317480059,2.95,186.86,186.82,3.08]
[1755317481446,2.99059923,186.87,186.82,3.08]
[1755317483860,2.95,186.86,186.81,2.88639355]
[1755317484061,2.95,186.86,186.82,3.08]
[1755317484963,2.95,186.86,186.81,3.08]
[1755317485656,2.95,186.86,186.82,5.3483]
[1755317485857,2.95,186.86,186.83,3.08]
[1755317486161,0.04059923,186.87,186.84,5.3479]
[1755317486355,0.04059923,186.87,186.85,3.08]
[1755317486956,2.99059923,186.87,186.85,3.08]
[1755317487361,2.95,186.86,186.85,3.08]
[1755317488964,0.04059923,186.87,186.85,3.08]
[1755317488965,0.04059923,186.87,186.85,8.4276]
[1755317489266,0.04059923,186.87,186.85,3.08]
[1755317489659,2.95,186.92,186.86,5.96639355]
[1755317489961,2.95,186.92,186.87,3.08]
[1755317490967,2.95,186.92,186.88,0.03752442]
[1755317493571,2.95,186.9,186.88,0.03752442]
[1755317494669,2.88639355,186.96,186.88,0.03752442]
[1755317494670,4.2900348,186.89,186.88,0.03752442]
[1755317494971,7.2400348,186.89,186.88,0.03752442]
[1755317496069,4.2900348,186.89,186.88,0.03752442]
[1755317496267,4.41229064,186.97,186.88,3.11752442]
[1755317496466,2.95,186.89,186.88,3.11752442]
[1755317496667,2.95,186.89,186.88,3.08]
[1755317498273,2.95,186.96,186.88,3.08]
[1755317498568,2.95,186.94,186.88,3.08]
[1755317498772,2.95,186.92,186.89,3.08]
[1755317499373,2.95,186.92,186.87,3.08]
[1755317499570,2.95,186.92,186.89,0.039183]
[1755317500077,2.95,186.92,186.89,3.119183]
[1755317500573,2.95,186.92,186.89,0.039183]
[1755317502372,2.95,186.92,186.89,3.119183]
[1755317504774,2.95,186.91,186.9,3.08]
[1755317505576,2.95,186.96,186.9,3.08]
[1755317505779,4.28604826,186.95,186.9,3.08]
[1755317505979,4.28604826,186.94,186.9,3.08]
[1755317506182,2.95,186.93,186.9,3.08]
[1755317506475,2.95,186.93,186.92,3.08]
[1755317507177,4.41229064,187.0,186.92,3.08]
[1755317507377,2.95,186.94,186.93,3.08]
[1755317507576,2.95,186.99,186.93,3.08]
[1755317507782,2.95,186.97,186.93,3.08]
[1755317508077,2.95,186.99,186.95,8.4246]
[1755317508277,2.95,186.99,186.96,3.08]
[1755317509178,2.95,186.99,186.96,8.4245]
[1755317509373,2.95,186.99,186.95,0.03552281]
[1755317509574,2.95,186.99,186.98,3.11]
[1755317512079,2.95,186.99,186.96,3.11]
[1755317512671,2.95,186.99,186.97,3.11]
[1755317515784,3.06,186.98,186.97,3.11]
[1755317516574,3.06,186.98,186.95,3.14552281]
[1755317516779,3.06,186.98,186.96,3.11]
[1755317516982,4.41229064,187.04,186.96,3.11]
[1755317517182,3.06,187.02,186.96,3.11]
[1755317517386,3.06,187.0,186.96,3.11]
[1755317517984,3.06,187.0,186.94,2.88639355]
[1755317518282,3.06,187.0,186.96,0.03664996]
[1755317518682,3.06,187.0,186.96,3.14664996]
[1755317521690,3.06,187.0,186.97,3.11]
[1755317522685,3.06,187.0,186.96,0.03664996]
[1755317523080,3.06,187.0,186.97,3.11]
[1755317524387,3.06,187.0,186.96,0.03664996]
[1755317524583,3.06,186.98,186.96,0.03664996]
[1755317524780,3.06,186.97,186.96,0.03664996]
[1755317527291,7.34242198,186.97,186.96,0.03664996]
[1755317542706,7.34242198,186.97,186.96,3.09664996]
[1755317544511,4.28242198,186.97,186.96,3.09664996]
[1755317544711,2.84,187.02,186.96,3.09664996]
[1755317544909,4.29607129,187.01,186.98,8.4039]
[1755317545112,4.41229064,187.05,186.99,3.06]
[1755317545311,2.84,187.03,186.99,3.06]
[1755317545510,7.13590154,187.02,186.99,3.06]
[1755317545710,4.29590154,187.01,186.99,3.06]
[1755317545911,4.29590154,187.0,186.99,3.06]
[1755317547013,7.13590154,187.0,186.98,0.03770703]
[1755317547213,7.13590154,186.99,186.98,0.03770703]
[1755317550213,7.13590154,186.99,186.98,3.09770703]
[1755317550413,7.13590154,186.99,186.98,0.03770703]
[1755317551312,11.54819218,186.99,186.98,0.03770703]
[1755317551811,7.13590154,186.99,186.98,0.03770703]
[1755317552915,11.56792545,186.99,186.98,0.03770703]
[1755317553118,11.56792545,186.99,186.98,3.09770703]
[1755317553815,11.56792545,186.99,186.98,0.03770703]
[1755317557917,7.13590154,186.99,186.98,3.09770703]
[1755317559616,11.56792545,186.99,186.98,0.03770703]
[1755317559824,7.13590154,186.99,186.98,0.03770703]
[1755317561521,4.29590154,186.99,186.93,3.06]
[1755317561723,2.84,186.96,186.93,3.06]
[1755317562023,2.84,186.94,186.93,3.06]
[1755317562222,7.13590154,186.94,186.93,3.06]
[1755317562526,4.29590154,186.94,186.93,3.06]
[1755317562829,7.13590154,186.94,186.93,3.06]
[1755317567232,7.1415534,186.94,186.93,3.06]
[1755317568033,4.3015534,186.94,186.93,3.06]
[1755317568931,0.03672145,186.95,186.93,3.06]
[1755317570833,0.03672145,186.95,186.94,8.2151]
[1755317571129,0.03672145,186.95,186.94,2.87]
[1755317582238,4.33979108,186.95,186.94,2.87]
[1755317582436,0.03672145,186.95,186.94,2.87]
[1755317585237,2.95672145,186.95,186.94,2.87]
[1755317587737,7.26121319,186.95,186.94,2.87]
[1755317591142,4.34121319,186.95,186.94,2.87]
[1755317592338,0.03672145,186.95,186.94,2.87]
[1755317592539,2.92,186.99,186.94,2.87]
[1755317592739,4.30754143,186.98,186.95,2.88639355]
[1755317592943,4.30754143,186.97,186.96,2.87]
[1755317593144,2.92,186.99,186.96,2.87]
[1755317593339,4.23051571,186.98,186.96,2.87]
[1755317593540,2.92,186.98,186.96,2.87]
[1755317596047,2.92,187.02,186.96,2.87]
[1755317596344,7.14917654,187.01,186.99,2.87]
[1755317596541,4.43319032,187.05,186.99,2.87]
[1755317596542,2.92,187.0,186.99,2.87]
[1755317597639,4.43319032,187.05,186.99,2.87]
[1755317597847,4.22798597,187.04,186.99,2.87]
[1755317598145,2.92,187.02,186.98,2.88639355]
[1755317598347,2.92,187.0,186.97,0.03944653]
[1755317598541,2.84,186.98,186.97,0.03944653]
[1755317602449,7.06136787,186.98,186.97,0.03944653]
[1755317606755,2.84,187.0,186.97,3.07944653]
[1755317606960,4.22195749,186.99,186.98,3.04]
[1755317607460,7.06195749,186.99,186.98,3.04]
[1755317608558,2.84,187.01,186.98,3.04]
[1755317608755,4.43319032,187.05,186.98,3.04]
[1755317608960,2.84,187.0,186.98,3.04]
[1755317609259,4.43319032,187.05,186.98,3.04]
[1755317609460,2.84,186.99,186.98,3.04]
[1755317610564,2.84,187.04,186.97,0.03944653]
[1755317610759,2.84,187.02,186.97,0.03944653]
[1755317610957,2.84,187.0,186.97,0.03944653]
[1755317611152,2.84,186.98,186.97,0.03944653]
[1755317611357,4.22300879,186.98,186.97,0.03944653]
[1755317611562,7.06300879,186.98,186.97,0.03944653]
[1755317611862,2.84,187.0,186.97,3.07944653]
[1755317612051,2.84,186.98,186.97,3.07944653]
[1755317612862,2.84,187.01,186.97,3.07944653]
[1755317613063,4.22477257,187.0,186.97,3.07944653]
[1755317613265,2.84,187.0,186.97,8.42364653]
[1755317613459,4.43319032,187.05,186.98,3.04]
[1755317613662,2.84,187.02,186.98,3.04]
[1755317613858,2.84,187.02,187.0,3.04]
[1755317615163,2.84,187.02,187.0,8.3832]
[1755317615363,2.84,187.02,187.01,3.04]
[1755317616563,2.84,187.06,187.01,3.04]
[1755317616761,2.84,187.04,187.01,3.04]
[1755317617362,2.84,187.04,187.01,3.07453933]
[1755317617768,4.43319032,187.1,187.01,3.07453933]
[1755317617965,7.06177826,187.09,187.01,3.07453933]
[1755317618169,2.84,187.07,187.02,5.92639355]
[1755317618363,2.84,187.05,187.03,3.04]
[1755317620071,2.84,187.06,187.03,3.04]
[1755317620271,2.84,187.1,187.03,3.04]
[1755317620470,4.21834237,187.09,187.03,5.3424]
[1755317620677,2.84,187.07,187.04,3.04]
[1755317620971,2.84,187.06,187.05,3.07948916]
[1755317621468,2.84,187.08,187.06,3.04]
[1755317621672,7.05717298,187.07,187.06,3.04]
[1755317622170,2.84,187.07,187.06,3.04]
[1755317622371,2.84,187.11,187.05,0.03948916]
[1755317622571,2.84,187.09,187.05,0.03948916]
[1755317622770,2.84,187.07,187.05,0.03948916]
[1755317622972,2.84,187.07,187.05,3.07948916]
[1755317623673,2.84,187.07,187.05,0.03948916]
[1755317624873,2.84,187.11,187.05,0.03948916]
[1755317625074,2.84,187.09,187.05,0.03948916]
[1755317625272,2.84,187.07,187.05,0.03948916]
[1755317634181,4.43319032,187.11,187.05,0.03948916]
[1755317634386,3.0,187.09,187.06,2.91]
[1755317634681,7.21499772,187.08,187.07,2.91]
[1755317635074,7.21499772,187.08,187.05,0.03948916]
[1755317635279,3.0,187.08,187.05,0.03948916]
[1755317635480,3.0,187.08,187.06,2.91]
[1755317636184,3.0,187.07,187.05,0.03948916]
[1755317636383,3.0,187.09,187.05,0.03948916]
[1755317636578,4.21653079,187.08,187.06,2.91]
[1755317636778,3.0,187.08,187.06,2.91]
[1755317637682,3.0,187.07,187.05,0.03948916]
[1755317638181,3.0,187.07,187.06,2.91]
[1755317641091,3.0,187.11,187.07,2.91]
[1755317641281,130.5,187.14,187.07,2.91]
[1755317641481,3.0,187.1,187.07,2.91]
[1755317641887,3.0,187.1,187.09,2.9439618]
[1755317643388,130.5,187.14,187.09,2.9439618]
[1755317643586,3.0,187.11,187.09,2.9439618]
[1755317643988,3.0,187.13,187.1,2.91]
[1755317644188,3.0,187.11,187.1,2.91]
[1755317646589,3.0,187.11,187.09,0.0339618]
[1755317646789,3.0,187.11,187.09,2.9439618]
[1755317647186,3.0,187.11,187.09,0.0339618]
[1755317647390,3.0,187.13,187.09,0.0339618]
[1755317647586,130.5,187.14,187.09,0.0339618]
[1755317647587,3.0,187.11,187.09,0.0339618]
[1755317649290,4.21455043,187.1,187.09,0.0339618]
[1755317649589,7.21455043,187.1,187.09,0.0339618]
[1755317652592,3.0,187.09,187.0,2.91]
[1755317652794,3.0,187.07,187.0,2.91]
[1755317652990,3.0,187.05,187.0,2.91]
[1755317653190,3.0,187.03,187.0,2.91]
[1755317653587,3.0,187.03,186.97,2.88639355]
[1755317653787,3.03843955,187.03,187.01,2.91]
[1755317654294,0.03843955,187.03,187.01,2.91]
[1755317654494,3.0,187.02,187.01,2.91]
[1755317655389,3.0,187.02,186.97,2.88639355]